fUSD/lending_fUSD_20240616
["ID","MTS","AMOUNT","RATE_DAILY","PERIOD"]
[329659952,1718549457289,-170.08205433,0.0002776,2]
[329659953,1718549457300,-338.68648196,0.0002776,2]
[329659954,1718549457314,-155.4812766,0.0002776,2]
[329659955,1718549457330,-240.93311441,0.0002776,2]
[329659956,1718549457346,-277.74016818,0.0002776,2]
[329659957,1718549457358,-163.49476447,0.0002776,2]
[329659958,1718549457370,-1713.82095435,0.0002776,2]
[329659959,1718549457382,-155.0,0.0002776,2]
[329659960,1718549457394,-180.35875155,0.0002776,2]
[329659962,1718549457417,-156.12580805,0.0002776,2]
[329659964,1718549457429,-161.32465935,0.0002776,2]
[329659966,1718549457442,-166.65902904,0.0002776,2]
[329659968,1718549457454,-285.21638539,0.0002776,2]
[329659970,1718549457469,-265.82029383,0.0002776,2]
[329659972,1718549457496,-349.95238219,0.0002776,2]
[329659975,1718549457510,-156.84507586,0.0002776,2]
[329659977,1718549457522,-155.46731699,0.0002776,2]
[329659979,1718549457536,-155.0,0.0002776,2]
[329659981,1718549457548,-157.08940379,0.0002776,2]
[329659983,1718549457574,-163.04593255,0.0002776,2]
[329659985,1718549457588,-1219.0116262,0.0002776,2]
[329659987,1718549457600,-201.47569243,0.0002776,2]
[329659989,1718549457616,-525.60111443,0.0002776,2]
[329659991,1718549457636,-4446.54749549,0.0002776,2]
[329659993,1718549457654,-2338.37648856,0.0002776,2]
[329659995,1718549457692,-1278.05478064,0.0002776,2]
[329659997,1718549457705,-1575.19630059,0.0002776,2]
[329660000,1718549457729,-7539.93986431,0.0002776,2]
[329660001,1718549457742,-282.09176999,0.0002776,2]
[329660003,1718549457765,-155.52023343,0.0002776,2]
[329660004,1718549457776,-1807.61850809,0.0002776,2]
[329660006,1718549457787,-25118.64337004,0.0002776,2]
[329660008,1718549457799,-304.61863798,0.0002776,2]
[329660010,1718549457811,-386.62849784,0.0002776,2]
[329660012,1718549457824,-426.425883,0.0002776,2]
[329660014,1718549457840,-500.0,0.00027761,2]
[329660016,1718549457856,-500.0,0.00027761,8]
[329660018,1718549457873,-500.0,0.00027761,2]
[329660021,1718549457902,-531.95953497,0.00027761,8]
[329660024,1718549457927,-500.0,0.00027761,2]
[329660026,1718549457938,-160.42581049,0.00027761,2]
[329660028,1718549457952,-1500.0,0.00027761,90]
[329660030,1718549457965,-150.0,0.00027761,2]
[329660032,1718549457979,-150.0,0.00027761,7]
[329660034,1718549458001,-432.16771118,0.00027762,5]
[329660036,1718549458024,-72016.8680925,0.00027762,13]
[329660046,1718549458164,-930.552031,0.00027762,13]
[329660048,1718549458200,-1138.33001587,0.00027762,13]
[329660051,1718549458222,-56991.37508712,0.00027762,13]
[329660053,1718549458247,-1853.6965244,0.00027762,13]
[329660056,1718549458268,-633.56217276,0.00027762,13]
[329660057,1718549458299,-5403.85429947,0.00027762,13]
[329660060,1718549458337,-1293.13248897,0.00027762,13]
[329660065,1718549458417,-151.0,0.00026,7]
[329660067,1718549458436,-21333.24352627,0.00027762,13]
[329660070,1718549458453,-139804.86128979,0.00027762,5]
[329660072,1718549458486,-384.34999965,0.00027762,5]
[329660080,1718549458613,-200.31390903,0.00016261,2]
[329660083,1718549458633,-154.94345145,0.00024799,2]
[329660084,1718549458646,-151.0,0.00026532,7]
[329660087,1718549458658,-128.1600383,0.0002776,2]
[329660091,1718549458731,-178.88264684,0.0002776,2]
[329660093,1718549458747,-15792.50828716,0.00027762,5]
[329660095,1718549458768,-5795.19038756,0.00027762,5]
[329660097,1718549458788,-3369.0,0.00027762,5]
[329660099,1718549458805,-771.4335555,0.00027762,5]
[329660105,1718549458905,-1369.385998,0.00026,7]
[329660107,1718549458939,-411.56412614,0.00026532,7]
[329660109,1718549458985,-957.82187186,0.00026532,7]
[329660110,1718549459003,-2000.0,0.000274,2]
[329660112,1718549459048,-411.10322206,0.00027762,5]
[329660131,1718549459369,-154.94345145,0.00024799,2]
[329660132,1718549459386,-158.52799191,0.0002776,2]
[329660134,1718549459415,-90.56180707,0.0002776,2]
[329660136,1718549459431,-909.43819293,0.0002776,2]
[329660138,1718549459441,-476.0,0.00027762,5]
[329660140,1718549459468,-193.27357193,0.00027762,5]
[329660141,1718549459482,-11427.50964721,0.00027762,5]
[329660144,1718549459520,-281.0,0.00027762,5]
[329660148,1718549459604,-155.0,0.0002776,2]
[329660150,1718549459615,-3332.79719692,0.00027762,5]
[329660151,1718549459673,-34798.458,0.00027762,5]
[329660153,1718549459689,-3399.39625553,0.00027762,5]
[329660157,1718549459744,-213.65,0.00027397,10]
[329660158,1718549459765,-110.58779872,0.00027762,5]
[329660160,1718549459787,-2131.91272846,0.00027762,5]
[329660162,1718549459803,-1754.77948346,0.00027762,5]
[329660166,1718549459867,-500.10126801,0.0002776,2]
[329660168,1718549459878,-1692.20876631,0.00027762,5]
[329660170,1718549459897,-551.40043963,0.00027762,5]
[329660172,1718549459923,-2080.02,0.00027762,5]
[329660174,1718549459937,-682.94,0.00027762,5]
[329660264,1718549463521,150.0,0.00010654,2]
[329660268,1718549463579,150.0,0.00010654,2]
[329660272,1718549463659,150.0,0.00010654,2]
[329660276,1718549550544,4423.62,0.00027,30]
[329660282,1718550550217,-255.86890428,0.00017133,2]
[329660283,1718550550264,-258.37137548,0.00017134,2]
[329660284,1718550550348,-2400.89832024,0.00017134,2]
[329660297,1718550633631,-158.52799191,0.0001713,2]
[329660298,1718550633644,-162.6345703,0.00017142,2]
[329660299,1718550633655,-377.68743779,0.00017251,2]
[329660300,1718550633670,-2034.51281324,0.00017251,2]
[329660301,1718550634093,-523.06213342,0.00017129,2]
[329660302,1718550634109,-977.25158098,0.00017251,2]
[329660303,1718550634126,-779.16224796,0.00017252,2]
[329660304,1718550634162,-116.79705764,0.00017259,2]
[329660305,1718550634180,-33.20294236,0.00017259,2]
[329660306,1718550634193,-499.99,0.00017808,2]
[329660307,1718550634205,-150.99,0.00017808,2]
[329660308,1718550634219,-678.32,0.00017808,2]
[329660309,1718550634232,-360.01,0.00018846,2]
[329660310,1718550634244,-210.0,0.00018985,2]
[329660311,1718550634257,-187.77928612,0.0002,2]
[329660312,1718550634269,-326.5417784,0.00020576,2]
[329660313,1718550634285,-155.0,0.00020577,2]
[329660314,1718550634296,-249.0,0.00020883,2]
[329660315,1718550634309,-381.68,0.0002235,2]
[329660316,1718550634323,-5000.0,0.00022469,2]
[329660317,1718550634334,-715.15608201,0.00022522,2]
[329660318,1718550634349,-3693.866,0.00022637,2]
[329660319,1718550634360,-1551.0,0.000228,5]
[329660320,1718550634378,-3719.893,0.00023665,2]
[329660321,1718550634393,-192.33,0.00024133,2]
[329660322,1718550634404,-250.0,0.0002417,2]
[329660323,1718550634428,-3941.94,0.00024188,2]
[329660324,1718550634443,-4643.59,0.00024306,2]
[329660325,1718550634463,-250.0,0.0002433,2]
[329660326,1718550634484,-204.27,0.00024384,2]
[329660327,1718550634504,-188.14,0.00024384,2]
[329660328,1718550634540,-200.0,0.00024397,2]
[329660329,1718550634579,-250.0,0.00024411,2]
[329660330,1718550634601,-172.81,0.00024561,2]
[329660331,1718550634613,-236.49,0.00024611,2]
[329660332,1718550634626,-381.68,0.00024613,2]
[329660333,1718550634649,-188.19,0.00024614,2]
[329660334,1718550634660,-156.76,0.00024731,2]
[329660335,1718550634684,-150.07,0.00024851,2]
[329660336,1718550634696,-6806.05267092,0.000249,2]
[329660337,1718550634720,-705.42,0.00024937,2]
[329660338,1718550634731,-753.61958458,0.0002499,2]
[329660339,1718550634773,-2234.42600816,0.0002499,2]
[329660340,1718550634784,-173.3439918,0.00025,2]
[329660341,1718550634797,-517.0,0.00025,2]
[329660342,1718550634850,-143.65913859,0.00025,2]
[329660343,1718550634892,-931.60424191,0.00025,2]
[329660344,1718550634926,-155.0,0.00025,2]
[329660345,1718550634938,-219.7366195,0.00025,2]
[329660346,1718550634951,-1684.86444504,0.00025,2]
[329660347,1718550634964,-530.0,0.00025,2]
[329660348,1718550634977,-531.77659901,0.00025,2]
[329660349,1718550634993,-4465.86343355,0.00025,2]
[329660350,1718550635013,-14485.73159542,0.00025,2]
[329660351,1718550635024,-159.29139933,0.00025,2]
[329660352,1718550635034,-1983.21942943,0.00025,2]
[329660353,1718550635048,-225.48556248,0.00025,2]
[329660354,1718550635061,-707.39834978,0.00025043,2]
[329660355,1718550635085,-1000.0,0.00025046,2]
[329660356,1718550635103,-998.9,0.000251,2]
[329660357,1718550635131,-188.16,0.00025188,2]
[329660358,1718550635161,-2500.0,0.000252,2]
[329660359,1718550635187,-167.12,0.00025219,2]
[329660362,1718550635208,-11919.02632706,0.00026,4]
[329660363,1718550635230,-258.37137548,0.00026303,2]
[329660364,1718550635241,-255.86890428,0.00026304,2]
[329660365,1718550635251,-998.9,0.00026305,2]
[329660366,1718550635261,-500.0,0.00026399,2]
[329660367,1718550635271,-500.0,0.00026399,2]
[329660368,1718550635282,-1092.44838145,0.0002646,2]
[329660369,1718550635295,-180.0,0.0002653,2]
[329660370,1718550635307,-626.62448516,0.0002665,2]
[329660371,1718550635320,-1005.91889257,0.0002667,2]
[329660372,1718550635336,-1055.36131531,0.00026844,2]
[329660373,1718550635348,-381.68,0.00026877,2]
[329660374,1718550635372,-17812.44666351,0.00027,2]
[329660375,1718550635388,-169.36899405,0.00027,2]
[329660376,1718550635401,-1205.49676765,0.00027,2]
[329660377,1718550635424,-496.76,0.00027084,2]
[329660378,1718550635445,-2014.98329277,0.000272,2]
[329660379,1718550635476,-1000.0,0.00027297,2]
[329660380,1718550635486,-10000.0,0.00027297,2]
[329660381,1718550635508,-236.49,0.00027351,2]
[329660382,1718550635518,-500.0,0.00027397,8]
[329660383,1718550635530,-477.07077999,0.00027397,8]
[329660384,1718550635550,-156.18103081,0.00027397,8]
[329660385,1718550635562,-155.0,0.00027397,8]
[329660386,1718550635596,-150.0,0.00027397,2]
[329660387,1718550635669,-367.79128071,0.00027397,8]
[329660388,1718550635682,-1500.0,0.00027397,90]
[329660389,1718550635705,-207.60559337,0.00027397,7]
[329660390,1718550635716,-150.0,0.00027397,2]
[329660391,1718550635727,-1595.73,0.00027397,30]
[329660392,1718550635741,-159.71,0.00027397,2]
[329660393,1718550635762,-178.04,0.00027397,10]
[329660394,1718550635774,-890.21,0.00027397,10]
[329660395,1718550635808,-491.0,0.000274,2]
[329660396,1718550635866,-3500.0,0.000274,8]
[329660397,1718550635900,-166.0,0.000274,2]
[329660398,1718550635914,-934.43019472,0.0002749,3]
[329660399,1718550635927,-998.9,0.0002751,2]
[329660400,1718550635944,-150.0,0.00027534,2]
[329660401,1718550635960,-500.0,0.00027547,2]
[329660402,1718550635972,-5215.5683,0.00027562,2]
[329660403,1718550636012,-155.0,0.00027621,2]
[329660404,1718550636025,-3404.5372,0.0002766,2]
[329660405,1718550636077,-601.8998,0.0002766,2]
[329660406,1718550636112,-1034.0527,0.0002766,2]
[329660407,1718550636124,-5655.6554,0.0002766,2]
[329660408,1718550636152,-222.06784948,0.0002766,2]
[329660409,1718550636204,-166.92825755,0.0002766,2]
[329660410,1718550636216,-335.85531535,0.0002766,2]
[329660411,1718550636234,-166.92825752,0.0002766,2]
[329660412,1718550636257,-335.85531534,0.00027661,2]
[329660413,1718550636268,-166.92825752,0.00027661,2]
[329660414,1718550636279,-166.92825752,0.00027661,2]
[329660415,1718550636303,-335.85531534,0.00027661,2]
[329660416,1718550636315,-166.92825752,0.00027662,2]
[329660417,1718550636326,-4356.549,0.00027662,2]
[329660418,1718550636344,-17877.20408496,0.00027662,2]
[329660419,1718550636368,-186.64468326,0.00027662,2]
[329660420,1718550636387,-222.06784948,0.00027662,2]
[329660421,1718550636399,-166.92825752,0.00027662,2]
[329660422,1718550636414,-176.98889233,0.00027662,2]
[329660423,1718550636445,-335.85531534,0.00027662,2]
[329660424,1718550636486,-369.64253326,0.00027662,2]
[329660425,1718550636509,-150.0,0.00027671,2]
[329660426,1718550636534,-1500.0,0.00027671,90]
[329660427,1718550636546,-219.83,0.00027671,2]
[329660428,1718550636567,-2000.0,0.000277,2]
[329660429,1718550636581,-2000.0,0.000277,2]
[329660430,1718550636595,-2000.0,0.000277,2]
[329660431,1718550636624,-1061.5967,0.000277,2]
[329660432,1718550636636,-617.46751549,0.000277,2]
[329660433,1718550636655,-291.0,0.000277,2]
[329660434,1718550636669,-160.0,0.000277,2]
[329660435,1718550636684,-150.0,0.000277,5]
[329660436,1718550636696,-150.0,0.000277,5]
[329660437,1718550636733,-155.0,0.000277,2]
[329660438,1718550636745,-528.5934403,0.00027759,8]
[329660439,1718550636758,-500.0,0.00027759,8]
[329660440,1718550636808,-246.3867,0.00027759,8]
[329660441,1718550636835,-1282.18805985,0.0002776,2]
[329660442,1718550636882,-453.87015895,0.0002776,2]
[329660443,1718550636932,-155.64326602,0.0002776,2]
[329660444,1718550636957,-481.48312914,0.0002776,2]
[329660445,1718550636972,-2373.19637807,0.0002776,2]
[329660446,1718550636988,-206.99819124,0.0002776,2]
[329660447,1718550637016,-156.01219047,0.0002776,2]
[329660448,1718550637029,-170.18980355,0.0002776,2]
[329660449,1718550637042,-155.32499341,0.0002776,2]
[329660450,1718550637069,-6275.93285934,0.0002776,2]
[329660451,1718550637080,-485.53775357,0.0002776,3]
[329660452,1718550637105,-681.30421136,0.0002776,2]
[329660453,1718550637160,-155.0,0.0002776,2]
[329660454,1718550637177,-2685.57613705,0.0002776,2]
[329660455,1718550637242,-190.90850866,0.0002776,2]
[329660456,1718550637278,-246.51690211,0.0002776,2]
[329660457,1718550637296,-902.79780802,0.0002776,5]
[329660458,1718550637311,-49843.18595291,0.0002776,2]
[329660459,1718550637382,-326.42008962,0.00025,2]
[329660460,1718550637406,-125.21877804,0.0002776,2]
[329660461,1718550637425,-380.82981456,0.0002776,2]
[329660462,1718550637472,-115333.87397633,0.0002776,2]
[329660463,1718550640024,-1000.0,0.00017129,2]
[329660464,1718550640036,-630.41108301,0.00025,2]
[329660465,1718550640060,-8869.58883922,0.0002776,2]
[329660467,1718550640712,-20834.65949868,0.0002776,2]
[329660469,1718550640757,-137691.07305084,0.0002776,2]
[329660470,1718550640798,-331.62745078,0.0002776,2]
[329660471,1718550640815,-5900.0,0.0002776,7]
[329660472,1718550640832,-688.78661675,0.0002776,2]
[329660473,1718550640857,-193.27101439,0.0002776,2]
[329660474,1718550640869,-2001.18032223,0.0002776,2]
[329660475,1718550640901,-519.16694675,0.0002776,2]
[329660476,1718550640916,-205.81009804,0.0002776,2]
[329660477,1718550640936,-176.62524942,0.0002776,2]
[329660478,1718550640956,-296.05843551,0.0002776,2]
[329660479,1718550640977,-2000.0,0.00027761,2]
[329660480,1718550640994,-1158.29379,0.00027761,2]
[329660481,1718550641016,-432.0,0.00027762,5]
[329660482,1718550641034,-5618.11138893,0.00027762,2]
[329660483,1718550641046,-216.08385559,0.00027762,5]
[329660484,1718550641084,-80797.30711917,0.00027762,13]
[329660485,1718550641095,-284312.37673332,0.00027762,5]
[329660487,1718550641494,-347.93,0.00027762,5]
[329660489,1718550641517,-31379.86762403,0.00027762,5]
[329660492,1718550641535,-781.88578096,0.00027762,5]
[329660494,1718550641550,-769.22313,0.00027762,5]
[329660556,1718550645781,-154.94345145,0.0002756,2]
[329660557,1718550645801,-2845.33932585,0.00027697,2]
[329660558,1718550646317,-1408.31351656,0.00027697,2]
[329660559,1718550646331,-609.27715759,0.00027697,2]
[329660560,1718550646364,-199.24735036,0.00027761,2]
[329660561,1718550646377,-1293532.25867763,0.00027762,5]
[329660570,1718550648800,-361.43872924,0.00027207,2]
[329660572,1718550648824,-701.32584171,0.00027207,2]
[329660574,1718550648836,-535.38927151,0.00027761,2]
[329660575,1718550648848,-155.0,0.00027761,2]
[329660576,1718550648862,-119.89681946,0.00027761,2]
[329660577,1718550648877,-513.84632224,0.00027761,2]
[329660578,1718550648894,-424.35038744,0.00027761,2]
[329660628,1718550650265,-159.29139933,0.0002776,2]
[329660630,1718550650282,-326.5417784,0.0002776,2]
[329660632,1718550650297,-522.77872266,0.0002776,2]
[329660634,1718550650311,-1983.21942943,0.0002776,2]
[329660636,1718550650329,-5747.95914178,0.00027761,2]
[329660637,1718550650341,-389.0,0.00027762,5]
[329660639,1718550650355,-390346.85255751,0.00027762,5]
[329660669,1718550793412,330.87,0.00025915,120]
[329660673,1718551357268,164.33,0.00024772,120]
[329660678,1718551834087,-5588.69804539,0.00015711,2]
[329660679,1718551834102,-920.53374068,0.00015712,2]
[329660680,1718551834113,-525.92177641,0.00015712,2]
[329660681,1718551834123,-155.0,0.00015713,2]
[329660682,1718551834152,-258.37137548,0.00015714,2]
[329660683,1718551834181,-536.866205,0.00015714,2]
[329660684,1718551834192,-300.0,0.00015714,2]
[329660685,1718551834223,-1000.0,0.00015715,2]
[329660686,1718551834239,-2301.89484872,0.00015716,2]
[329660687,1718551834250,-2813.95149916,0.00016021,2]
[329660688,1718551834260,-306.1744,0.0001613,2]
[329660689,1718551834275,-792.89791342,0.0001633,2]
[329660690,1718551834287,-5287.16567022,0.00017155,2]
[329660691,1718551834300,-409.14289488,0.00017257,2]
[329660692,1718551834311,-1271.92,0.0001726,2]
[329660693,1718551834321,-150.99,0.00017534,2]
[329660694,1718551834331,-499.99,0.00017808,2]
[329660695,1718551834342,-536.49,0.00019454,2]
[329660696,1718551834354,-155.0,0.0002,2]
[329660697,1718551834376,-187.77928612,0.0002,2]
[329660698,1718551834389,-226.81877563,0.000201,2]
[329660699,1718551834401,-3898.38718173,0.00020625,2]
[329660700,1718551834411,-1782.65765508,0.00020626,2]
[329660701,1718551834423,-326.5417784,0.00020627,2]
[329660702,1718551834434,-1250.0,0.00021,2]
[329660703,1718551834451,-5000.0,0.00021183,2]
[329660704,1718551834468,-852.07,0.00021184,2]
[329660705,1718551834480,-714.08,0.00021295,2]
[329660706,1718551834505,-300.0,0.00021422,2]
[329660707,1718551834549,-23890.0,0.00021457,2]
[329660708,1718551834581,-157.295,0.00021471,2]
[329660709,1718551834592,-157.295,0.00021568,2]
[329660710,1718551834603,-157.295,0.00021666,2]
[329660711,1718551834614,-300.0,0.00021703,2]
[329660712,1718551834629,-536.49,0.00021717,2]
[329660713,1718551834643,-157.295,0.00021765,2]
[329660714,1718551834654,-250.0,0.00021787,2]
[329660715,1718551834665,-150.0,0.00021826,2]
[329660716,1718551834680,-404.91,0.0002189,2]
[329660717,1718551834702,-184.91,0.00021891,2]
[329660718,1718551834714,-626.04921726,0.000219,2]
[329660719,1718551834740,-269.25,0.00021922,2]
[329660720,1718551834768,-300.0,0.00021985,2]
[329660721,1718551834786,-200.0,0.00021998,2]
[329660722,1718551834805,-250.0,0.00022013,2]
[329660723,1718551834816,-164.33,0.0002202,2]
[329660724,1718551834826,-1000.43,0.00022086,2]
[329660725,1718551834838,-156.67,0.0002212,2]
[329660726,1718551834850,-150.07,0.0002218,2]
[329660727,1718551834861,-250.0,0.0002218,2]
[329660728,1718551834885,-300.0,0.00022267,2]
[329660729,1718551834905,-254.06,0.00022368,2]
[329660730,1718551834917,-4378.58,0.00022399,2]
[329660731,1718551834935,-156.67,0.00022504,2]
[329660732,1718551834946,-164.57,0.00022537,2]
[329660733,1718551834960,-2525.99,0.0002258,2]
[329660734,1718551834975,-2525.99,0.00022586,2]
[329660735,1718551834996,-2525.99,0.00022592,2]
[329660736,1718551835036,-2525.99,0.00022597,2]
[329660737,1718551835060,-2525.99,0.00022603,2]
[329660738,1718551835076,-2525.99,0.00022609,2]
[329660739,1718551835091,-2525.99,0.00022615,2]
[329660740,1718551835109,-2525.99,0.00022621,2]
[329660741,1718551835120,-2525.99,0.00022627,2]
[329660742,1718551835131,-2525.99,0.00022633,2]
[329660743,1718551835142,-2525.99,0.00022639,2]
[329660744,1718551835152,-2525.99,0.00022645,2]
[329660745,1718551835163,-2525.99,0.00022651,2]
[329660746,1718551835175,-2525.99,0.00022657,2]
[329660747,1718551835187,-2525.99,0.00022663,2]
[329660748,1718551835206,-2525.99,0.00022669,2]
[329660749,1718551835217,-2525.99,0.00022675,2]
[329660750,1718551835231,-2525.99,0.00022681,2]
[329660751,1718551835245,-2525.99,0.00022687,2]
[329660752,1718551835256,-2525.99,0.00022693,2]
[329660753,1718551835268,-167.12,0.00022788,2]
[329660754,1718551835280,-156.67,0.00022888,2]
[329660755,1718551835299,-1300.0,0.00023,2]
[329660756,1718551835322,-269.25,0.00023018,2]
[329660757,1718551835333,-156.67,0.00023272,2]
[329660758,1718551835348,-164.57,0.00023467,2]
[329660759,1718551835360,-173.22,0.0002368,2]
[329660760,1718551835371,-852.07,0.00023832,2]
[329660761,1718551835384,-536.49,0.00023981,2]
[329660762,1718551835412,-381.94808766,0.00024,2]
[329660763,1718551835428,-714.08,0.00024035,2]
[329660764,1718551835460,-3714.278,0.00024098,2]
[329660765,1718551835476,-2059.47906552,0.000241,2]
[329660766,1718551835492,-269.25,0.00024114,2]
[329660767,1718551835510,-180.0,0.0002423,2]
[329660768,1718551835530,-150.87,0.00024384,2]
[329660769,1718551835541,-164.57,0.00024397,2]
[329660770,1718551835582,-2918.0,0.000245,4]
[329660771,1718551835593,-1978.0,0.00024547,2]
[329660772,1718551835604,-1706.388,0.00024547,2]
[329660773,1718551835618,-707.028,0.00024547,2]
[329660774,1718551835644,-222.995,0.00024547,2]
[329660775,1718551835657,-294.42,0.00024547,2]
[329660776,1718551835671,-197.215,0.00024547,2]
[329660777,1718551835683,-299.97320991,0.00024772,2]
[329660778,1718551835710,-879.30463729,0.00024772,4]
[329660780,1718551835744,-150.0,0.00024772,2]
[329660781,1718551835762,-150.0,0.00024772,2]
[329660782,1718551835812,-150.0,0.0002488,2]
[329660783,1718551835839,-6806.05267092,0.000249,2]
[329660784,1718551835855,-150.02,0.00024979,2]
[329660785,1718551835868,-6830.80044675,0.00024984,5]
[329660786,1718551835887,-229.26504233,0.00024984,2]
[329660787,1718551835907,-3692.135,0.00024994,2]
[329660788,1718551835932,-3693.533,0.00024994,2]
[329660789,1718551835943,-153.88,0.00024995,2]
[329660790,1718551835967,-834.00313039,0.00025,2]
[329660791,1718551835980,-931.60424191,0.00025,2]
[329660792,1718551835992,-155.0,0.00025,2]
[329660793,1718551836008,-707.39834978,0.00025,2]
[329660794,1718551836024,-326.42008962,0.00025,2]
[329660795,1718551836055,-630.41108301,0.00025,2]
[329660796,1718551836077,-1983.21942943,0.00025,2]
[329660797,1718551836096,-225.48556248,0.00025,2]
[329660798,1718551836110,-14485.73159542,0.0002508,2]
[329660799,1718551836123,-159.29139933,0.00025081,2]
[329660800,1718551836138,-7432.2410971,0.00025081,2]
[329660801,1718551836153,-1412.90758,0.000251,2]
[329660802,1718551836164,-269.25,0.0002521,2]
[329660803,1718551836176,-280.0,0.000253,2]
[329660804,1718551836208,-164.57,0.00025327,2]
[329660805,1718551836229,-173.22,0.00025355,2]
[329660806,1718551836243,-165.18,0.00025486,2]
[329660807,1718551836257,-184.91,0.00025539,2]
[329660808,1718551836270,-17211.3395,0.00025815,2]
[329660809,1718551836281,-170.16176489,0.00025819,2]
[329660810,1718551836293,-1205.49676765,0.00025915,2]
[329660811,1718551836313,-169.36899405,0.00025915,2]
[329660812,1718551836325,-50474.23271813,0.00025915,2]
[329660813,1718551836342,-32265.0,0.00025915,2]
[329660814,1718551836367,-1973.22629204,0.00025915,2]
[329660815,1718551836468,-2783.83701633,0.00025915,2]
[329660816,1718551836483,-267.23393513,0.00025915,2]
[329660817,1718551836496,-212991.18545226,0.00025915,2]
[329660818,1718551836512,-777.495996,0.00025915,2]
[329660819,1718551836528,-844.0,0.00025915,2]
[329660820,1718551836544,-2132.32698548,0.00025915,2]
[329660821,1718551836572,-3738.06263077,0.00025915,2]
[329660835,1718551838947,-300.11965555,0.00015613,2]
[329660838,1718551838961,-235.91411325,0.00015613,2]
[329660841,1718551838973,-865.824,0.00024547,2]
[329660846,1718551839011,-159.29139933,0.00025,2]
[329660851,1718551839049,-261.54888443,0.00025915,2]
[329660854,1718551839065,-454.67894768,0.00025915,2]
[329660856,1718551839104,-3016.15798426,0.00025915,2]
[329660864,1718551839488,-444.98047775,0.00025915,2]
[329660865,1718551839506,-83289.33433764,0.00025915,2]
[329660866,1718551839521,-3360.28349679,0.00025915,2]
[329660867,1718551839544,-901.37718854,0.00025915,2]
[329660868,1718551839567,-345.02,0.00025915,2]
[329660869,1718551840137,-378.88143139,0.00025915,2]
[329660870,1718551840157,-3111.9919513,0.00025915,2]
[329660872,1718551840711,-150.0,0.00024547,2]
[329660875,1718551840726,-178.19011871,0.00025915,2]
[329660878,1718551840747,-509.6896542,0.00025915,2]
[329660886,1718551843995,-301.628,0.00024947,2]
[329660888,1718551844011,-71105.82558016,0.00025915,2]
[329660889,1718551844527,-540.18000005,0.00025915,2]
[329660890,1718551844565,-2917.73487043,0.00025915,2]
[329660891,1718551844593,-3602.21195516,0.00025915,2]
[329660892,1718551844609,-4128.63986883,0.00025915,2]
[329660893,1718551844637,-3933.36463944,0.00025915,2]
[329660894,1718551844664,-4432.26839026,0.00025915,2]
[329660895,1718551844698,-6757.96750055,0.00025915,2]
[329660896,1718551844721,-39335.07785512,0.00025915,2]
[329660897,1718551844756,-1617.592005,0.00025915,2]
[329660898,1718551844771,-1212.68834929,0.00025915,2]
[329660899,1718551844792,-1872.404,0.00025915,2]
[329660900,1718551844811,-585.2625124,0.00025915,2]
[329660901,1718551845180,-668.35529073,0.00025915,2]
[329660902,1718551845202,-499.14942718,0.00025919,2]
[329660903,1718551845219,-500.0,0.00025919,2]
[329660904,1718551845256,-500.0,0.00025919,2]
[329660905,1718551845268,-500.0,0.00025919,2]
[329660906,1718551845287,-500.0,0.00025919,2]
[329660907,1718551845304,-345.04100026,0.00025919,2]
[329660908,1718551845335,-154.95899974,0.00025919,2]
[329660909,1718551845360,-356.02156979,0.00025919,2]
[329660910,1718551845382,-151.71964822,0.00025919,2]
[329660911,1718551845394,-500.0,0.00025919,2]
[329660912,1718551845410,-500.0,0.00025919,2]
[329660913,1718551845421,-500.0,0.00025919,2]
[329660914,1718551845437,-63.53923422,0.00025919,2]
[329660915,1718551845455,-436.46076578,0.00025919,2]
[329660916,1718551845466,-500.0,0.00025919,2]